fUST/lending_fUST_20240807
["ID","MTS","AMOUNT","RATE_DAILY","PERIOD"]
[334322060,1722972649251,-444.548727,0.00038346,7]
[334322061,1722972649261,-718.942964,0.00038346,7]
[334322062,1722972649272,-718.942964,0.00038346,7]
[334322063,1722972649282,-151.0,0.00038346,7]
[334322064,1722972649291,-156.024906,0.00038346,7]
[334322065,1722972649301,-156.024906,0.00038346,7]
[334322066,1722972649311,-214.324932,0.00038346,7]
[334322067,1722972649322,-214.324932,0.00038346,7]
[334322068,1722972649331,-213.246932,0.00038346,7]
[334322069,1722972649341,-213.246932,0.00038346,7]
[334322070,1722972649350,-151.0,0.00038346,7]
[334322071,1722972649360,-151.0,0.00038346,7]
[334322072,1722972649369,-151.0,0.00038346,7]
[334322073,1722972649378,-1274.27,0.00038354,14]
[334322074,1722972649388,-1500.0,0.00038355,25]
[334322075,1722972649397,-1274.27,0.00038355,14]
[334322076,1722972649407,-1274.27,0.00038355,14]
[334322077,1722972649417,-1274.27,0.00038355,14]
[334322078,1722972649426,-1274.27,0.00038355,14]
[334322079,1722972649439,-1274.27,0.00038355,14]
[334322080,1722972649449,-1274.27,0.00038355,14]
[334322081,1722972649459,-1274.27,0.00038355,14]
[334322082,1722972649469,-1274.27,0.00038355,14]
[334322083,1722972649479,-1274.33016614,0.00038355,14]
[334322084,1722972649488,-167.61640295,0.00038355,15]
[334322085,1722972649497,-237.39595232,0.00038355,15]
[334322086,1722972649507,-500.0,0.00038355,15]
[334322087,1722972649517,-416.51967727,0.00038355,15]
[334322088,1722972649526,-500.0,0.00038355,15]
[334322089,1722972649536,-500.0,0.00038355,15]
[334322090,1722972649545,-235.00652897,0.00038355,15]
[334322091,1722972649559,-264.99347103,0.00038355,15]
[334322092,1722972649569,-500.0,0.00038355,15]
[334322093,1722972649580,-500.0,0.00038355,15]
[334322094,1722972649593,-500.0,0.00038355,15]
[334322095,1722972649602,-500.0,0.00038355,15]
[334322096,1722972649612,-500.0,0.00038355,15]
[334322097,1722972649621,-500.0,0.00038355,15]
[334322098,1722972649634,-500.0,0.00038355,15]
[334322099,1722972649643,-378.76286604,0.00038355,15]
[334322100,1722972649652,-500.0,0.00038355,15]
[334322101,1722972649662,-500.0,0.00038355,15]
[334322102,1722972649672,-500.0,0.00038355,15]
[334322103,1722972649684,-500.0,0.00038355,15]
[334322104,1722972649693,-730.4826472,0.00038355,15]
[334322105,1722972649703,-730.4826472,0.00038355,15]
[334322106,1722972649713,-730.4826472,0.00038355,15]
[334322107,1722972649722,-730.4826472,0.00038355,15]
[334322108,1722972649731,-730.4826472,0.00038355,15]
[334322109,1722972649741,-730.4826472,0.00038355,15]
[334322110,1722972649751,-730.4826472,0.00038355,15]
[334322111,1722972649761,-730.4826472,0.00038355,15]
[334322112,1722972649770,-730.4826472,0.00038355,15]
[334322113,1722972649780,-500.0,0.00038355,15]
[334322114,1722972649789,-326.72253357,0.00038355,15]
[334322115,1722972649799,-500.0,0.00038355,15]
[334322116,1722972649809,-55114.30440096,0.00038356,21]
[334322117,1722972649818,-4150.08,0.00038356,14]
[334322118,1722972649828,-500.0,0.00038356,14]
[334322119,1722972649837,-500.0,0.00038356,14]
[334322120,1722972649847,-500.0,0.00038356,14]
[334322121,1722972649856,-500.0,0.00038356,14]
[334322122,1722972649866,-500.0,0.00038356,14]
[334322123,1722972649875,-244.62766966,0.00038356,14]
[334322124,1722972649885,-459.32655205,0.00038356,14]
[334322125,1722972649895,-631.75732864,0.00038356,14]
[334322126,1722972649904,-500.0,0.00038356,14]
[334322127,1722972649914,-500.0,0.00038356,14]
[334322128,1722972649924,-500.0,0.00038356,14]
[334322129,1722972649936,-500.0,0.00038356,14]
[334322130,1722972649946,-500.0,0.00038356,14]
[334322131,1722972649955,-942.51,0.00038356,14]
[334322132,1722972649965,-500.0,0.00038356,14]
[334322133,1722972649975,-500.0,0.00038356,14]
[334322134,1722972649984,-500.0,0.00038356,14]
[334322135,1722972649994,-500.0,0.00038356,14]
[334322136,1722972650003,-500.0,0.00038356,14]
[334322137,1722972650013,-500.0,0.00038356,14]
[334322138,1722972650023,-479.91810883,0.00038356,14]
[334322139,1722972650032,-500.0,0.00038356,14]
[334322140,1722972650042,-500.0,0.00038356,14]
[334322141,1722972650051,-500.0,0.00038356,14]
[334322142,1722972650060,-500.0,0.00038356,14]
[334322143,1722972650070,-1382.24,0.00038356,14]
[334322144,1722972650080,-500.0,0.00038356,14]
[334322145,1722972650089,-715.88,0.00038356,14]
[334322146,1722972650098,-500.0,0.00038356,14]
[334322147,1722972650107,-500.0,0.00038356,14]
[334322148,1722972650116,-500.0,0.00038356,14]
[334322149,1722972650125,-562.53,0.00038356,14]
[334322150,1722972650134,-870.51,0.00038356,14]
[334322151,1722972650143,-1968.8,0.00038356,14]
[334322152,1722972650153,-500.0,0.00038356,14]
[334322153,1722972650162,-598.83,0.00038356,14]
[334322154,1722972650171,-500.0,0.00038356,2]
[334322155,1722972650182,-500.0,0.00038356,14]
[334322156,1722972650191,-500.0,0.00038356,14]
[334322157,1722972650200,-500.0,0.00038356,14]
[334322158,1722972650209,-523.91,0.00038356,14]
[334322159,1722972650218,-500.0,0.00038356,14]
[334322160,1722972650228,-218.8,0.00038356,7]
[334322161,1722972650237,-500.0,0.00038356,14]
[334322162,1722972650246,-500.0,0.00038356,14]
[334322163,1722972650255,-500.0,0.00038356,14]
[334322164,1722972650265,-500.0,0.00038356,14]
[334322165,1722972650276,-371.08625576,0.00038356,14]
[334322166,1722972650285,-522.5118749,0.00038356,14]
[334322167,1722972650295,-500.0,0.00038356,14]
[334322168,1722972650304,-881.96,0.00038356,14]
[334322169,1722972650316,-500.0,0.00038356,14]
[334322170,1722972650329,-500.0,0.00038356,14]
[334322171,1722972650340,-500.0,0.00038356,14]
[334322172,1722972650350,-1005.83,0.00038356,14]
[334322173,1722972650362,-580.06,0.00038356,14]
[334322174,1722972650371,-150.0,0.00038356,14]
[334322175,1722972650381,-500.0,0.00038356,14]
[334322176,1722972650391,-500.0,0.00038356,14]
[334322177,1722972650400,-500.0,0.00038356,14]
[334322178,1722972650409,-500.0,0.00038356,14]
[334322179,1722972650419,-500.0,0.00038356,14]
[334322180,1722972650428,-554.18818316,0.00038356,14]
[334322181,1722972650438,-691.77,0.00038356,14]
[334322182,1722972650448,-500.0,0.00038356,14]
[334322183,1722972650458,-500.0,0.00038356,14]
[334322184,1722972650467,-500.0,0.00038356,14]
[334322185,1722972650477,-500.0,0.00038356,14]
[334322186,1722972650487,-500.0,0.00038356,14]
[334322187,1722972650496,-500.0,0.00038356,14]
[334322188,1722972650505,-500.0,0.00038356,14]
[334322189,1722972650515,-500.0,0.00038356,14]
[334322190,1722972650524,-500.0,0.00038356,14]
[334322191,1722972650534,-500.0,0.00038356,14]
[334322192,1722972650543,-500.0,0.00038356,14]
[334322193,1722972650552,-500.0,0.00038356,14]
[334322194,1722972650561,-500.0,0.00038356,14]
[334322195,1722972650571,-500.0,0.00038356,14]
[334322196,1722972650583,-500.0,0.00038356,14]
[334322197,1722972650594,-500.0,0.00038356,14]
[334322198,1722972650603,-500.0,0.00038356,14]
[334322199,1722972650613,-500.0,0.00038356,14]
[334322200,1722972650622,-500.0,0.00038356,14]
[334322201,1722972650631,-500.0,0.00038356,14]
[334322202,1722972650640,-513.46,0.00038356,14]
[334322203,1722972650650,-651.92,0.00038356,14]
[334322204,1722972650661,-500.0,0.00038356,14]
[334322205,1722972650672,-500.0,0.00038356,14]
[334322206,1722972650683,-520.59,0.00038356,14]
[334322207,1722972650693,-500.0,0.00038356,14]
[334322208,1722972650703,-500.0,0.00038356,14]
[334322209,1722972650712,-500.0,0.00038356,14]
[334322210,1722972650721,-500.0,0.00038356,14]
[334322211,1722972650731,-500.0,0.00038356,14]
[334322212,1722972650740,-500.0,0.00038356,14]
[334322213,1722972650750,-500.0,0.00038356,14]
[334322214,1722972650759,-500.0,0.00038356,14]
[334322215,1722972650770,-500.0,0.00038356,14]
[334322216,1722972650781,-523.93352579,0.00038356,14]
[334322217,1722972650792,-500.0,0.00038356,14]
[334322218,1722972650803,-500.0,0.00038356,14]
[334322219,1722972650812,-500.81388057,0.00038356,14]
[334322220,1722972650822,-500.0,0.00038356,14]
[334322221,1722972650832,-500.0,0.00038356,14]
[334322222,1722972650841,-500.0,0.00038356,14]
[334322223,1722972650850,-642.55,0.00038356,14]
[334322224,1722972650859,-500.0,0.00038356,14]
[334322225,1722972650869,-500.0,0.00038356,14]
[334322226,1722972650879,-516.7468468,0.00038356,14]
[334322227,1722972650888,-500.0,0.00038356,14]
[334322228,1722972650897,-500.0,0.00038356,14]
[334322229,1722972650906,-535.22370283,0.00038356,14]
[334322230,1722972650916,-500.0,0.00038356,14]
[334322231,1722972650925,-500.0,0.00038356,14]
[334322232,1722972650936,-500.0,0.00038356,14]
[334322233,1722972650946,-633.4,0.00038356,14]
[334322234,1722972650955,-500.0,0.00038356,14]
[334322235,1722972650964,-500.0,0.00038356,14]
[334322236,1722972650973,-500.0,0.00038356,14]
[334322237,1722972650982,-500.0,0.00038356,14]
[334322238,1722972650991,-500.0,0.00038356,14]
[334322239,1722972651000,-616.05700974,0.00038356,14]
[334322240,1722972651009,-849.6,0.00038356,14]
[334322241,1722972651018,-500.0,0.00038356,14]
[334322242,1722972651027,-500.0,0.00038356,14]
[334322243,1722972651036,-500.0,0.00038356,14]
[334322244,1722972651046,-509.09073126,0.00038356,14]
[334322245,1722972651055,-200.8320707,0.00038356,14]
[334322246,1722972651063,-500.0,0.00038356,14]
[334322247,1722972651073,-500.0,0.00038356,14]
[334322248,1722972651083,-500.0,0.00038356,14]
[334322249,1722972651093,-500.0,0.00038356,14]
[334322250,1722972651102,-500.0,0.00038356,14]
[334322251,1722972651111,-500.0,0.00038356,14]
[334322252,1722972651120,-500.0,0.00038356,14]
[334322253,1722972651129,-500.0,0.00038356,14]
[334322254,1722972651139,-500.0,0.00038356,14]
[334322255,1722972651148,-500.0,0.00038356,14]
[334322256,1722972651157,-500.0,0.00038356,14]
[334322257,1722972651166,-2655.42,0.00038356,14]
[334322258,1722972651176,-500.0,0.00038356,14]
[334322259,1722972651190,-500.0,0.00038356,14]
[334322260,1722972651199,-500.0,0.00038356,14]
[334322261,1722972651208,-500.0,0.00038356,14]
[334322262,1722972651217,-619.76,0.00038356,14]
[334322263,1722972651226,-540.85,0.00038356,14]
[334322264,1722972651236,-500.0,0.00038356,14]
[334322265,1722972651246,-501.34218933,0.00038356,14]
[334322266,1722972651255,-569.98744275,0.00038356,14]
[334322267,1722972651264,-1005.38,0.00038356,14]
[334322268,1722972651274,-500.0,0.00038356,14]
[334322269,1722972651283,-500.0,0.00038356,14]
[334322270,1722972651293,-500.0,0.00038356,14]
[334322271,1722972651302,-500.0,0.00038356,7]
[334322272,1722972651312,-165.5872134,0.00038356,14]
[334322273,1722972651323,-500.0,0.00038356,14]
[334322274,1722972651333,-500.0,0.00038356,14]
[334322275,1722972651342,-500.0,0.00038356,14]
[334322276,1722972651352,-500.0,0.00038356,14]
[334322277,1722972651361,-563.72,0.00038356,14]
[334322278,1722972651370,-500.0,0.00038356,14]
[334322279,1722972651380,-500.0,0.00038356,14]
[334322280,1722972651390,-501.2137023,0.00038356,14]
[334322281,1722972651400,-500.0,0.00038356,14]
[334322282,1722972651410,-500.0,0.00038356,14]
[334322283,1722972651419,-500.0,0.00038356,14]
[334322284,1722972651431,-500.0,0.00038356,14]
[334322285,1722972651441,-1137.61,0.00038356,14]
[334322286,1722972651450,-532.53,0.00038356,14]
[334322287,1722972651460,-658.39,0.00038356,14]
[334322288,1722972651469,-500.0,0.00038356,14]
[334322289,1722972651478,-500.0,0.00038356,14]
[334322290,1722972651488,-500.0,0.00038356,14]
[334322291,1722972651498,-1190.46,0.00038356,14]
[334322292,1722972651508,-500.0,0.00038356,14]
[334322293,1722972651517,-508.77861821,0.00038356,14]
[334322294,1722972651527,-500.0,0.00038356,14]
[334322295,1722972651537,-500.0,0.00038356,14]
[334322296,1722972651547,-279.077864,0.00038356,7]
[334322297,1722972651557,-500.0,0.00038356,14]
[334322298,1722972651567,-279.077864,0.00038356,7]
[334322299,1722972651578,-279.077864,0.00038356,7]
[334322300,1722972651588,-279.077854,0.00038356,7]
[334322301,1722972651602,-500.0,0.00038356,14]
[334322302,1722972651611,-709.21,0.00038356,14]
[334322303,1722972651621,-595.39,0.00038356,14]
[334322304,1722972651631,-500.0,0.00038356,14]
[334322305,1722972651641,-500.0,0.00038356,14]
[334322306,1722972651650,-678.38,0.00038356,14]
[334322307,1722972651659,-500.0,0.00038356,14]
[334322308,1722972651671,-500.0,0.00038356,14]
[334322309,1722972651681,-500.0,0.00038356,14]
[334322310,1722972651691,-500.0,0.00038356,14]
[334322311,1722972651700,-500.0,0.00038356,14]
[334322312,1722972651710,-500.0,0.00038356,14]
[334322313,1722972651719,-200.52953679,0.00038356,14]
[334322314,1722972651729,-500.0,0.00038356,14]
[334322315,1722972651739,-500.0,0.00038356,14]
[334322316,1722972651748,-500.0,0.00038356,14]
[334322317,1722972651758,-500.28594751,0.00038356,14]
[334322318,1722972651769,-500.0,0.00038356,14]
[334322319,1722972651779,-2267.2,0.00038356,14]
[334322320,1722972651789,-500.0,0.00038356,14]
[334322321,1722972651799,-500.0,0.00038356,14]
[334322322,1722972651808,-2182.86,0.00038356,14]
[334322323,1722972651818,-500.0,0.00038356,14]
[334322324,1722972651827,-500.0,0.00038356,14]
[334322325,1722972651837,-562.95,0.00038356,14]
[334322326,1722972651847,-500.0,0.00038356,14]
[334322327,1722972651858,-500.0,0.00038356,14]
[334322328,1722972651867,-692.79,0.00038356,14]
[334322329,1722972651878,-500.0,0.00038356,14]
[334322330,1722972651887,-500.0,0.00038356,14]
[334322331,1722972651897,-500.0,0.00038356,14]
[334322332,1722972651906,-500.0,0.00038356,14]
[334322333,1722972651916,-1443.57,0.00038356,14]
[334322334,1722972651926,-501.43586523,0.00038356,14]
[334322335,1722972651939,-500.0,0.00038356,50]
[334322336,1722972651949,-500.0,0.00038356,14]
[334322337,1722972652107,-503.24,0.00038356,14]
[334322338,1722972652128,-500.0,0.00038356,14]
[334322339,1722972652139,-500.0,0.00038356,14]
[334322340,1722972652148,-500.0,0.00038356,14]
[334322341,1722972652158,-550.23,0.00038356,14]
[334322342,1722972652168,-500.0,0.00038356,14]
[334322343,1722972652180,-500.0,0.00038356,14]
[334322344,1722972652189,-664.54,0.00038356,14]
[334322345,1722972652199,-502.66332443,0.00038356,14]
[334322346,1722972652208,-835.98,0.00038356,14]
[334322347,1722972652217,-500.0,0.00038356,14]
[334322348,1722972652227,-500.0,0.00038356,14]
[334322349,1722972652236,-500.0,0.00038356,14]
[334322350,1722972652246,-500.0,0.00038356,14]
[334322351,1722972652255,-584.12971488,0.00038356,14]
[334322352,1722972652265,-500.0,0.00038356,14]
[334322353,1722972652274,-500.0,0.00038356,14]
[334322354,1722972652284,-509.87476095,0.00038356,14]
[334322355,1722972652294,-1900.64,0.00038356,14]
[334322356,1722972652304,-500.0,0.00038356,14]
[334322357,1722972652314,-1416.59,0.00038356,14]
[334322358,1722972652324,-716.18,0.00038356,14]
[334322359,1722972652334,-500.0,0.00038356,14]
[334322360,1722972652344,-500.0,0.00038356,14]
[334322361,1722972652354,-500.0,0.00038356,14]
[334322362,1722972652363,-500.0,0.00038356,14]
[334322363,1722972652373,-500.0,0.00038356,14]
[334322364,1722972652383,-542.52,0.00038356,14]
[334322365,1722972652392,-375.89863565,0.00038356,14]
[334322366,1722972652402,-542.52,0.00038356,14]
[334322367,1722972652412,-542.52,0.00038356,14]
[334322368,1722972652421,-542.52,0.00038356,14]
[334322369,1722972652434,-542.52,0.00038356,14]
[334322370,1722972652448,-542.52,0.00038356,14]
[334322371,1722972652459,-542.52,0.00038356,14]
[334322372,1722972652469,-663.08,0.00038356,14]
[334322373,1722972652478,-542.52,0.00038356,14]
[334322374,1722972652487,-542.52,0.00038356,14]
[334322375,1722972652496,-542.52,0.00038356,14]
[334322376,1722972652505,-542.52,0.00038356,14]
[334322377,1722972652515,-542.52,0.00038356,14]
[334322378,1722972652524,-542.52,0.00038356,14]
[334322379,1722972652534,-2536.05,0.00038356,14]
[334322380,1722972652543,-542.52,0.00038356,14]
[334322381,1722972652553,-500.0,0.00038356,14]
[334322382,1722972652562,-634.37,0.00038356,14]
[334322383,1722972652572,-542.52,0.00038356,14]
[334322384,1722972652585,-500.0,0.00038356,14]
[334322385,1722972652596,-500.0,0.00038356,14]
[334322386,1722972652606,-500.0,0.00038356,14]
[334322387,1722972652616,-500.0,0.00038356,14]
[334322388,1722972652626,-500.0,0.00038356,14]
[334322389,1722972652636,-500.0,0.00038356,14]
[334322390,1722972652645,-1868.09,0.00038356,14]
[334322391,1722972652654,-500.0,0.00038356,14]
[334322392,1722972652664,-500.0,0.00038356,14]
[334322393,1722972652674,-652.45,0.00038356,14]
[334322394,1722972652686,-500.0,0.00038356,14]
[334322395,1722972652695,-500.0,0.00038356,14]
[334322396,1722972652705,-500.0,0.00038356,14]
[334322397,1722972652715,-500.0,0.00038356,14]
[334322398,1722972652725,-500.0,0.00038356,14]
[334322399,1722972652734,-500.0,0.00038356,14]
[334322400,1722972652744,-1332.91,0.00038356,14]
[334322401,1722972652753,-500.0,0.00038356,14]
[334322402,1722972652763,-500.0,0.00038356,14]
[334322403,1722972652772,-500.0,0.00038356,14]
[334322404,1722972652782,-500.0,0.00038356,14]
[334322405,1722972652792,-536.12024183,0.00038356,14]
[334322406,1722972652802,-542.52,0.00038356,14]
[334322407,1722972652811,-542.52,0.00038356,14]
[334322408,1722972652821,-542.52,0.00038356,14]
[334322409,1722972652830,-542.52,0.00038356,14]
[334322410,1722972652840,-542.52,0.00038356,14]
[334322411,1722972652850,-500.0,0.00038356,14]
[334322412,1722972652859,-542.52,0.00038356,14]
[334322413,1722972652869,-542.52,0.00038356,14]
[334322414,1722972652878,-542.52,0.00038356,14]
[334322415,1722972652887,-542.6564315,0.00038356,14]
[334322416,1722972652896,-500.0,0.00038356,14]
[334322417,1722972652906,-500.0,0.00038356,14]
[334322418,1722972652915,-729.64,0.00038356,14]
[334322419,1722972652925,-606.02,0.00038356,14]
[334322420,1722972652937,-500.0,0.00038356,14]
[334322421,1722972652947,-505.55203561,0.00038356,14]
[334322422,1722972652956,-500.0,0.00038356,14]
[334322423,1722972652966,-500.0,0.00038356,14]
[334322424,1722972652975,-747.37,0.00038356,14]
[334322425,1722972652984,-500.0,0.00038356,14]
[334322426,1722972652994,-709.85,0.00038356,14]
[334322427,1722972653003,-552.88,0.00038356,14]
[334322428,1722972653012,-717.68,0.00038356,14]
[334322429,1722972653021,-500.0,0.00038356,14]
[334322430,1722972653030,-643.64,0.00038356,14]
[334322431,1722972653039,-500.0,0.00038356,14]
[334322432,1722972653048,-849.35,0.00038356,14]
[334322433,1722972653058,-500.0,0.00038356,14]
[334322434,1722972653067,-500.0,0.00038356,14]
[334322435,1722972653076,-500.0,0.00038356,14]
[334322436,1722972653085,-500.0,0.00038356,14]
[334322437,1722972653094,-741.73,0.00038356,14]
[334322438,1722972653104,-500.0,0.00038356,14]
[334322439,1722972653113,-500.0,0.00038356,14]
[334322440,1722972653122,-500.0,0.00038356,14]
[334322441,1722972653132,-501.86153908,0.00038356,14]
[334322442,1722972653142,-442.18544445,0.00038356,14]
[334322443,1722972653151,-500.0,0.00038356,14]
[334322444,1722972653160,-500.0,0.00038356,14]
[334322445,1722972653169,-613.61,0.00038356,14]
[334322446,1722972653180,-426.01621339,0.00038356,14]
[334322447,1722972653189,-500.0,0.00038356,14]
[334322448,1722972653198,-2018.34,0.00038356,14]
[334322449,1722972653208,-794.24,0.00038356,14]
[334322450,1722972653218,-500.0,0.00038356,14]
[334322451,1722972653227,-526.33908388,0.00038356,14]
[334322452,1722972653236,-500.0,0.00038356,14]
[334322453,1722972653245,-500.0,0.00038356,14]
[334322454,1722972653255,-151.0,0.00038356,7]
[334322455,1722972653264,-151.0,0.00038356,7]
[334322456,1722972653273,-500.0,0.00038356,14]
[334322457,1722972653282,-151.0,0.00038356,7]
[334322458,1722972653291,-1227.29,0.00038356,14]
[334322459,1722972653301,-2334.97,0.00038356,14]
[334322460,1722972653310,-151.0,0.00038356,7]
[334322461,1722972653320,-151.0,0.00038356,7]
[334322462,1722972653329,-500.0,0.00038356,14]
[334322463,1722972653339,-500.0,0.00038356,14]
[334322464,1722972653348,-500.0,0.00038356,14]
[334322465,1722972653358,-500.0,0.00038356,14]
[334322466,1722972653367,-526.63001161,0.00038356,14]
[334322467,1722972653377,-500.0,0.00038356,14]
[334322468,1722972653386,-500.0,0.00038356,7]
[334322469,1722972653395,-500.0,0.00038356,14]
[334322470,1722972653405,-500.0,0.00038356,14]
[334322471,1722972653415,-666.61,0.00038356,14]
[334322472,1722972653424,-619.07093968,0.00038356,14]
[334322473,1722972653435,-154.07900402,0.00038356,14]
[334322474,1722972653445,-502.33,0.00038356,14]
[334322475,1722972653455,-500.0,0.00038356,14]
[334322476,1722972653465,-500.0,0.00038356,14]
[334322477,1722972653474,-500.0,0.00038356,14]
[334322478,1722972653483,-500.0,0.00038356,14]
[334322479,1722972653492,-2000.0,0.00038356,14]
[334322480,1722972653502,-500.17199837,0.00038356,14]
[334322481,1722972653511,-500.0,0.00038356,14]
[334322482,1722972653521,-500.0,0.00038356,14]
[334322483,1722972653530,-523.50938344,0.00038356,14]
[334322484,1722972653539,-500.0,0.00038356,14]
[334322485,1722972653548,-500.0,0.00038356,14]
[334322486,1722972653558,-500.0,0.00038356,14]
[334322487,1722972653567,-500.0,0.00038356,14]
[334322488,1722972653576,-500.0,0.00038356,14]
[334322489,1722972653586,-2392.93,0.00038356,14]
[334322490,1722972653599,-542.31,0.00038356,14]
[334322491,1722972653609,-500.0,0.00038356,14]
[334322492,1722972653618,-500.0,0.00038356,14]
[334322493,1722972653628,-500.0,0.00038356,14]
[334322494,1722972653638,-500.0,0.00038356,14]
[334322495,1722972653647,-1673.06,0.00038356,14]
[334322496,1722972653656,-1092.21,0.00038356,14]
[334322497,1722972653667,-503.60115998,0.00038356,14]
[334322498,1722972653676,-621.99,0.00038356,14]
[334322499,1722972653688,-500.0,0.00038356,14]
[334322500,1722972653698,-500.0,0.00038356,14]
[334322501,1722972653708,-500.0,0.00038356,14]
[334322502,1722972653717,-500.0,0.00038356,14]
[334322503,1722972653726,-500.0,0.00038356,14]
[334322504,1722972653737,-1076.99,0.00038356,14]
[334322505,1722972653746,-532.5,0.00038356,14]
[334322506,1722972653756,-806.14,0.00038356,14]
[334322507,1722972653765,-507.50542561,0.00038356,14]
[334322508,1722972653775,-1003.67,0.00038356,14]
[334322509,1722972653785,-500.0,0.00038356,14]
[334322510,1722972653794,-500.0,0.00038356,14]
[334322511,1722972653803,-789.09,0.00038356,14]
[334322512,1722972653813,-1122.75,0.00038356,14]
[334322513,1722972653822,-500.0,0.00038356,14]
[334322514,1722972653831,-282.27793119,0.00038356,14]
[334322515,1722972653843,-500.0,0.00038356,14]
[334322516,1722972653855,-1559.35,0.00038356,14]
[334322517,1722972653864,-3563.26,0.00038356,14]
[334322518,1722972653874,-500.0,0.00038356,14]
[334322519,1722972653883,-500.0,0.00038356,14]
[334322520,1722972653893,-500.0,0.00038356,14]
[334322521,1722972653903,-3739.79,0.00038356,14]
[334322522,1722972653912,-500.0,0.00038356,14]
[334322523,1722972653922,-500.0,0.00038356,14]
[334322524,1722972653932,-2157.22,0.00038356,14]
[334322525,1722972653942,-1115.32,0.00038356,14]
[334322526,1722972653953,-538.89335928,0.00038356,14]
[334322527,1722972653962,-500.0,0.00038356,14]
[334322528,1722972653972,-500.0,0.00038356,14]
[334322529,1722972653981,-1707.93,0.00038356,14]
[334322530,1722972653990,-500.0,0.00038356,14]
[334322531,1722972653999,-500.0,0.00038356,14]
[334322532,1722972654011,-508.48,0.00038356,14]
[334322533,1722972654022,-500.0,0.00038356,14]
[334322534,1722972654032,-500.0,0.00038356,14]
[334322535,1722972654043,-500.0,0.00038356,14]
[334322536,1722972654054,-500.0,0.00038356,14]
[334322537,1722972654064,-500.0,0.00038356,14]
[334322538,1722972654074,-478.4678147,0.00038356,14]
[334322539,1722972654083,-500.0,0.00038356,14]
[334322540,1722972654092,-500.0,0.00038356,14]
[334322541,1722972654102,-1370.67,0.00038356,14]
[334322542,1722972654115,-500.0,0.00038356,14]
[334322543,1722972654125,-500.0,0.00038356,14]
[334322544,1722972654134,-506.46,0.00038356,14]
[334322545,1722972654144,-3352.29,0.00038356,14]
[334322546,1722972654153,-500.0,0.00038356,14]
[334322547,1722972654162,-500.0,0.00038356,14]
[334322548,1722972654171,-814.8,0.00038356,14]
[334322549,1722972654182,-814.8,0.00038356,14]
[334322550,1722972654191,-814.8,0.00038356,14]
[334322551,1722972654201,-814.8,0.00038356,14]
[334322552,1722972654211,-814.8,0.00038356,14]
[334322553,1722972654221,-814.8,0.00038356,14]
[334322554,1722972654230,-814.8,0.00038356,14]
[334322555,1722972654240,-814.8,0.00038356,14]
[334322556,1722972654250,-814.8,0.00038356,14]
[334322557,1722972654260,-742.0,0.00038356,14]
[334322558,1722972654270,-814.8,0.00038356,14]
[334322559,1722972654279,-814.8,0.00038356,14]